Workbook

Sheet Abovertrag
A1: GFB Catering GmbH | C1: HEINZEL food GmbH & Co. KG | E1: Tel: 0341/ 44 82 110 Fax: -114
A2: Gutenbergstr. 11 | C2: Rückmarsdorfer Str. 22A | E2: E-Mail: leipzig@gfb-catering.com | H2: 1 | I2: 42 | J2: r
A3: 04178 Leipzig | C3: 04179 Leipzig | E3: Web: www.gfb-catering.com
A5: Contract for school supplies between GFB Catering GmbH & HEINZEL food GmbH & Co. KG and
A6: surname, first name of parents
A7: for surname, first name of the child
A8: Customer number. | D8: (Customer number. will be communicated to you by GFB)
A9: birth date
A10: Street, Nr.
A11: Postal code | D11: Ort
A12: Phonenumber.* (*required) | E12: Fax
A13: E-Mail
A14: School | C14: Grundschule am Leutzscher Holz
A15: Class
A16: start of delivery:
A19: food supply | B19: =IF($C$19=0,$K$2,$J$2) -> r | C19: =INDEX(Einrichtungen!$G$2:$G$43,Abovertrag!I$2,1) -> Mittag
A21: discount | B21: =IF($C$19=0,$K$2,$J$2) -> r | C21: Education and participation package (please enclose valid proof)
A23: payment method | B23: For the direct debit procedure, please be sure to fill out the SEPA direct debit mandate overleaf!
A24: (monthly)
A25: 1. | B25: =IF($C$25=0,2,$J$2) -> r | C25: by direct debit, with receipt by post (€0.84 per receipt)
B26: =IF($C$25=0,2,$J$2) -> r | C26: by direct debit, with receipt sent by e-mail (free of charge)
B30: The invoices are to be paid within 5 days of receipt of the invoice.
A31: 2. | B31: =IF($C$25=0,2,$J$2) -> r | C31: by bank transfer, with receipt by post (0.84 € per receipt)
B32: =IF($C$25=0,2,$J$2) -> r | C32: by bank transfer, with receipt by e-mail (free of charge)
A35: X I hereby authorize GFB to provide meals for my child named above (see price table above including VAT).
A36: X I hereby authorize the service company, HEINZEL food GmbH & Co. KG, to serve out the food delivered by GFB and to wash the crockery and cutlery provided.
A37: Prices lunch supply in euros | F37: (incl. VAT)
A38: DGE-Linie | B38: Pasta-Linie | C38: Kids-Linie | D38: 100% BIO-Menü | E38: Coldmenü | F38: Saladplate | G38: Special diet
A39: 3.04 | B39: 3.04 | C39: 3.04 | D39: 3.84 | E39: 3.04 | F39: 3.04 | G39: 3.04
A40: 1.01 | B40: 1.01 | C40: 1.01 | D40: 1.01 | E40: 1.01 | F40: 1.01 | G40: 1.01
A41: 4.05 | B41: =B39+B40 -> 4.05 | C41: 4.05 | D41: 4.85 | E41: 4.05 | F41: 4.05 | G41: 4.05
A42: The prices can be adjusted again before the start of the 2023/2024 school year. The current prices are then visible to you in the app / online portal.
A43: GFB and HEINZEL food are authorized to increase the prices in this regard in the event of changes in the law, such as an increase in the statutory value added tax or the statutory minimum wage, which comes into force during the term of the framework agreement on the basis of which the individual contract was concluded. It is made clear that such changes in the law can relate to all service areas of the caterer. GFB / HEINZEL food have to prove the effects of the change in law to the city of Leipzig. The prices can only be adjusted if and to the extent that such effects can be proven. A price adjustment requires the prior consent of the City of Leipzig, which it may not refuse if the above conditions are met.
A44: The appendices letter to parents/contract information, payment agreement, data protection agreement and, if applicable, the SEPA direct debit mandate are hereby part of the contract. To end the supply, timely and written notice is required by the 20th calendar day for the following month.
A45: Seite 1 von 2
A46: Registered: GFB Catering GmbH District Court of Leipzig HRB 29635 Creditor ID: DE66LPZ00000279305 Managing Director: Benjamin Kroll | C46: Postal address: Gutenbergstraße 11 04178 Leipzig | E46: Bank details: Tax number: 43/200/11618 Deutsche Bank IBAN: DE76 8607 0024 0195 1144 00 BIC: DEUTDEDBLEG
A47: When using the RFID chip card system, the following applies:
A48: Your child/ren will receive the RFID chip card including a card sleeve at the food counter. The card may not be written on, punched, folded or otherwise altered. Disclosure to third parties is prohibited. If the card is lost or defective, please arrange for the card to be blocked as soon as possible. A new card can be ordered via our hotline 0341 / 44 82 110 or by email to leipzig@gfb-catering.com. A card and processing fee of €10.00 will be charged for issuing a replacement card. We will invoice you for this fee with the next statement. We will send the replacement ticket to the school's food distribution at short notice. No personal data is stored on the RFID chip card!
A50: SEPA - direct debit mandate
A52: payee:
A53: Creditor Identifier: DE66LPZ00000279305
A54: mandate reference: L P Z _ _ _ _ _ _ (e.g. LPZ123456)
A55: (to be filled in by the payee)
A57: I (We) authorize the above payee to
A58: o one-time payment
A59: S recurring payments
A60: to collect from my (our) account via SEPA core direct debit.
A61: At the same time, I instruct my (we instruct our) bank to redeem the direct debit(s) drawn from the above-mentioned payee to my (our) account.
A62: Note: I (we can) request reimbursement of the amount charged within 8 weeks of the debit date. The conditions agreed with my (our) bank apply.
A64: Debtor (account holder)
A65: First name and surname:
A66: Street, house number:
A67: Postal code and city:
A68: Customer number.: | C68: _ _ _ _ _ _
A69: Credit institution (name):
A70: BIC: | C70: _ _ _ _ _ _ _ _ | _ _ _
A71: IBAN: | C71: DE _ _ | _ _ _ _ | _ _ _ _ | _ _ _ _ | _ _ _ _ | _ _
A74: Place and date
A76: Signature(s) (account holder)
A78: Note: The direct debit is always made by the 10th of the following month. If the execution day falls on a non-bank working day, the order will be executed on the next bank working day. You will receive advance information about the forthcoming debit with a notice period of 1 day in the form of your statement, which will account for the previous month.
A80: Withdrawal Agreement
A81: I/we can revoke this agreement within 14 days at GFB Catering GmbH and HEINZEL food GmbH & Co. KG. A short written notification with the revocation is sufficient. I/we confirm my/our acknowledgment of this guarantee and the contractual information with payment agreement with my/our signature.
A82: ……………………………..……………… | C82: ……………………………..……………………………..……………………………..……………………………..…………
A83: Date | C83: Signature
A84: The contract confirmation on the part of GFB Catering GmbH, represented by the management (Mr. Kroll) and by the service partner HEINZEL food GmbH & Co. KG, represented by K+G clinic- and building service GmbH, represented by the management (Mr. Pohl) is also available without signature.
A85: Seite 2 von 2
A86: Registered: GFB Catering GmbH District Court of Leipzig HRB 29635 Creditor ID: DE66LPZ00000279305 Managing Director: Benjamin Kroll | C86: Postal address: Gutenbergstraße 11 04178 Leipzig | E86: Bank details: Tax number: 43/200/11618 Deutsche Bank IBAN: DE76 8607 0024 0195 1144 00 BIC: DEUTDEDBLEG

Sheet Einrichtungen
A1: Schulnummer | B1: KuNummer | C1: Name der Schule | D1: Schulart | E1: Passart 1 | F1: Passart 2 | G1: Versorgungsart 1 | H1: Versorgungsart 2 | I1: Zahlungsarten 1 | J1: Zahlungsarten 2 | K1: Zahlungsarten 3 | L1: Zahlungsarten 4 | M1: Brutto konv. | N1: Brutto Bio | O1: Brutto SK | P1: Brutto KV | Q1: Brutto oS konv. | R1: Brutto oS Bio | S1: Brutto oS SK
A2: 20000 | B2: 20 | C2: !Muster Schule | D2: Einsatz RFID-Chipkarten-System | E2: Bildungs- und Teilhabepaket (bitte gültigen Nachweis beifügen) | G2: Mittag | H2: 1 | I2: per Einzugsverfahren, mit Beleg per Postversand (0,84 € pro Beleg) | J2: per Einzugsverfahren, mit Beleg per E-Mail-Versand (ohne weitere Kosten) | K2: per Überweisung, mit Beleg per Postversand (0,84 € pro Beleg) | L2: per Überweisung, mit Beleg per E-Mail-Versand (ohne weitere Kosten)
A3: 469100 | B3: 4691 | C3: "Am Bürgergarten" Eilenburg | D3: Einsatz Essenmarke | E3: Bildungs- und Teilhabepaket (bitte gültigen Nachweis beifügen) | G3: Mittag | I3: per Einzugsverfahren, mit Beleg per Postversand (0,84 € pro Beleg) | J3: per Einzugsverfahren, mit Beleg per E-Mail-Versand (ohne weitere Kosten) | K3: per Überweisung, mit Beleg per Postversand (0,84 € pro Beleg) | L3: per Überweisung, mit Beleg per E-Mail-Versand (ohne weitere Kosten) | M3: 3 | N3: 4 | O3: 3.7 | P3: 3.1 | T3: Menü | U3: =+M3-0.68 -> 2.32 | V3: =+N3-0.68 -> 3.32 | W3: 3.02
A4: 456500 | B4: 4565 | C4: 125. Oberschule | D4: Einsatz RFID-Chipkarten-System | E4: Bildungs- und Teilhabepaket (bitte gültigen Nachweis beifügen) | G4: Mittag | I4: per Einzugsverfahren, mit Beleg per Postversand (0,84 € pro Beleg) | J4: per Einzugsverfahren, mit Beleg per E-Mail-Versand (ohne weitere Kosten) | K4: per Überweisung, mit Beleg per Postversand (0,84 € pro Beleg) | L4: per Überweisung, mit Beleg per E-Mail-Versand (ohne weitere Kosten) | M4: 3.4 | N4: 4.25 | O4: 3.95 | P4: 3.5 | T4: Menü | U4: =+M4-0.68 -> 2.72 | V4: 3.57 | W4: 3.27
A5: 466000 | B5: 466 | C5: 33. Grundschule | D5: Einsatz RFID-Chipkarten-System | E5: Bildungs- und Teilhabepaket (bitte gültigen Nachweis beifügen) | G5: Mittag | I5: per Einzugsverfahren, mit Beleg per Postversand (0,84 € pro Beleg) | J5: per Einzugsverfahren, mit Beleg per E-Mail-Versand (ohne weitere Kosten) | K5: per Überweisung, mit Beleg per Postversand (0,84 € pro Beleg) | L5: per Überweisung, mit Beleg per E-Mail-Versand (ohne weitere Kosten) | M5: 3.25 | N5: 4.1 | O5: 3.85 | P5: 3.35 | T5: Menü | U5: =+M5-0.68 -> 2.57 | V5: 3.42 | W5: 3.17
A6: 457600 | B6: 4576 | C6: 35. Oberschule | D6: Einsatz RFID-Chipkarten-System | E6: Bildungs- und Teilhabepaket (bitte gültigen Nachweis beifügen) | G6: Mittag | I6: per Einzugsverfahren, mit Beleg per Postversand (0,84 € pro Beleg) | J6: per Einzugsverfahren, mit Beleg per E-Mail-Versand (ohne weitere Kosten) | K6: per Überweisung, mit Beleg per Postversand (0,84 € pro Beleg) | L6: per Überweisung, mit Beleg per E-Mail-Versand (ohne weitere Kosten) | M6: 3.4 | N6: 4.25 | O6: 3.95 | P6: 3.5 | T6: Menü | U6: 2.72 | V6: 3.57 | W6: 3.27
A7: 454000 | B7: 454 | C7: Fritz-Baumgarten-Schule | D7: Einsatz RFID-Chipkarten-System | E7: Bildungs- und Teilhabepaket (bitte gültigen Nachweis beifügen) | G7: Mittag | I7: per Einzugsverfahren, mit Beleg per Postversand (0,84 € pro Beleg) | J7: per Einzugsverfahren, mit Beleg per E-Mail-Versand (ohne weitere Kosten) | K7: per Überweisung, mit Beleg per Postversand (0,84 € pro Beleg) | L7: per Überweisung, mit Beleg per E-Mail-Versand (ohne weitere Kosten) | M7: 3.25 | N7: 4.1 | O7: 3.85 | P7: 3.35 | T7: Menü | U7: 2.57 | V7: 3.42 | W7: 3.17
A8: 432000 | B8: 432 | C8: 78. Grundschule | D8: Einsatz Essenmarke | E8: Bildungs- und Teilhabepaket (bitte gültigen Nachweis beifügen) | G8: Mittag | I8: per Einzugsverfahren, mit Beleg per Postversand (0,84 € pro Beleg) | J8: per Einzugsverfahren, mit Beleg per E-Mail-Versand (ohne weitere Kosten) | K8: per Überweisung, mit Beleg per Postversand (0,84 € pro Beleg) | L8: per Überweisung, mit Beleg per E-Mail-Versand (ohne weitere Kosten) | M8: 3.25 | N8: 4.1 | O8: 3.85 | P8: 3.35 | T8: Menü | U8: 2.57 | V8: 3.42 | W8: 3.17
A9: 433500 | B9: 4335 | C9: 84. Oberschule | D9: Einsatz Tagesliste | E9: Bildungs- und Teilhabepaket (bitte gültigen Nachweis beifügen) | G9: Mittag | I9: per Einzugsverfahren, mit Beleg per Postversand (0,84 € pro Beleg) | J9: per Einzugsverfahren, mit Beleg per E-Mail-Versand (ohne weitere Kosten) | K9: per Überweisung, mit Beleg per Postversand (0,84 € pro Beleg) | L9: per Überweisung, mit Beleg per E-Mail-Versand (ohne weitere Kosten) | M9: 3.4 | N9: 4.25 | O9: 3.95 | P9: 3.5 | T9: Menü | U9: 2.72 | V9: 3.57 | W9: 3.27
A10: 453500 | B10: 4535 | C10: 94. Oberschule | D10: Einsatz RFID-Chipkarten-System | E10: Bildungs- und Teilhabepaket (bitte gültigen Nachweis beifügen) | G10: Mittag | I10: per Einzugsverfahren, mit Beleg per Postversand (0,84 € pro Beleg) | J10: per Einzugsverfahren, mit Beleg per E-Mail-Versand (ohne weitere Kosten) | K10: per Überweisung, mit Beleg per Postversand (0,84 € pro Beleg) | L10: per Überweisung, mit Beleg per E-Mail-Versand (ohne weitere Kosten) | M10: 3.4 | N10: 4.25 | O10: 3.95 | P10: 3.5 | T10: Menü | U10: 2.72 | V10: 3.57 | W10: 3.27
A11: 451000 | B11: 451 | C11: A.-F.-Oeser-Schule | D11: Einsatz RFID-Chipkarten-System | E11: Bildungs- und Teilhabepaket (bitte gültigen Nachweis beifügen) | G11: Mittag | I11: per Einzugsverfahren, mit Beleg per Postversand (0,84 € pro Beleg) | J11: per Einzugsverfahren, mit Beleg per E-Mail-Versand (ohne weitere Kosten) | K11: per Überweisung, mit Beleg per Postversand (0,84 € pro Beleg) | L11: per Überweisung, mit Beleg per E-Mail-Versand (ohne weitere Kosten) | M11: 3.25 | N11: 4.1 | O11: 3.85 | P11: 3.35 | T11: Menü | U11: 2.57 | V11: 3.42 | W11: 3.17
A12: 463500 | B12: 4635 | C12: A.-Lindgren-Schule | D12: Einsatz Essenmarke | E12: Bildungs- und Teilhabepaket (bitte gültigen Nachweis beifügen) | G12: Mittag | I12: per Einzugsverfahren, mit Beleg per Postversand (0,84 € pro Beleg) | J12: per Einzugsverfahren, mit Beleg per E-Mail-Versand (ohne weitere Kosten) | K12: per Überweisung, mit Beleg per Postversand (0,84 € pro Beleg) | L12: per Überweisung, mit Beleg per E-Mail-Versand (ohne weitere Kosten) | M12: 3.25 | N12: 4.1 | O12: 3.85 | P12: 3.35 | T12: Menü | U12: 2.57 | V12: 3.42 | W12: 3.17
A13: 471500 | B13: 4715 | C13: Schule Diderotstraße | D13: Einsatz RFID-Chipkarten-System | E13: Bildungs- und Teilhabepaket (bitte gültigen Nachweis beifügen) | G13: Mittag | I13: per Einzugsverfahren, mit Beleg per Postversand (0,84 € pro Beleg) | J13: per Einzugsverfahren, mit Beleg per E-Mail-Versand (ohne weitere Kosten) | K13: per Überweisung, mit Beleg per Postversand (0,84 € pro Beleg) | L13: per Überweisung, mit Beleg per E-Mail-Versand (ohne weitere Kosten) | M13: 3.4 | N13: 4.25 | O13: 3.95 | P13: 3.5 | T13: Menü | U13: 2.72 | V13: 3.57 | W13: 3.27
A14: 459000 | B14: 459 | C14: Brockhaus-Gymnasium | D14: Einsatz RFID-Chipkarten-System | E14: Bildungs- und Teilhabepaket (bitte gültigen Nachweis beifügen) | G14: Mittag | I14: per Einzugsverfahren, mit Beleg per Postversand (0,84 € pro Beleg) | J14: per Einzugsverfahren, mit Beleg per E-Mail-Versand (ohne weitere Kosten) | K14: per Überweisung, mit Beleg per Postversand (0,84 € pro Beleg) | L14: per Überweisung, mit Beleg per E-Mail-Versand (ohne weitere Kosten) | M14: 3.5 | N14: 4.35 | O14: 3.95 | P14: 3.6 | T14: Menü mit Salattheke | U14: =+M14-0.7 -> 2.8 | V14: 3.65 | W14: 3.25
A15: 450000 | B15: 450 | C15: Brüder-Grimm-Schule GS | D15: Einsatz RFID-Chipkarten-System | E15: Bildungs- und Teilhabepaket (bitte gültigen Nachweis beifügen) | G15: Mittag | I15: per Einzugsverfahren, mit Beleg per Postversand (0,84 € pro Beleg) | J15: per Einzugsverfahren, mit Beleg per E-Mail-Versand (ohne weitere Kosten) | K15: per Überweisung, mit Beleg per Postversand (0,84 € pro Beleg) | L15: per Überweisung, mit Beleg per E-Mail-Versand (ohne weitere Kosten) | M15: 3.35 | N15: 4.2 | O15: 3.85 | P15: 3.45 | T15: Menü mit Salattheke | U15: 2.65 | V15: 3.5 | W15: 3.15
A16: 461000 | B16: 461 | C16: Dieskau | D16: Einsatz RFID-Chipkarten-System | E16: Bildungs- und Teilhabepaket (bitte gültigen Nachweis beifügen) | G16: Mittag | I16: per Einzugsverfahren, mit Beleg per Postversand (0,84 € pro Beleg) | J16: per Einzugsverfahren, mit Beleg per E-Mail-Versand (ohne weitere Kosten) | K16: per Überweisung, mit Beleg per Postversand (0,84 € pro Beleg) | L16: per Überweisung, mit Beleg per E-Mail-Versand (ohne weitere Kosten) | M16: 3 | N16: 3.9 | O16: 3.7 | P16: 3.1 | T16: Menü | U16: =+M16-0.63 -> 2.37 | V16: =+N16-0.63 -> 3.27 | W16: =+O16-0.63 -> 3.07
A17: 455300 | B17: 4553 | C17: FÖS am Thonberg/ 2. ET (GS) | D17: Einsatz Tagesliste | E17: Bildungs- und Teilhabepaket (bitte gültigen Nachweis beifügen) | G17: Mittag | I17: per Einzugsverfahren, mit Beleg per Postversand (0,84 € pro Beleg) | J17: per Einzugsverfahren, mit Beleg per E-Mail-Versand (ohne weitere Kosten) | K17: per Überweisung, mit Beleg per Postversand (0,84 € pro Beleg) | L17: per Überweisung, mit Beleg per E-Mail-Versand (ohne weitere Kosten) | M17: 3.25 | N17: 4.1 | O17: 3.85 | P17: 3.35 | T17: Menü | U17: =+M17-0.68 -> 2.57 | V17: 3.42 | W17: 3.17
A18: 455300 | B18: 4553 | C18: FÖS am Thonberg/ 2. ET (OS) | D18: Einsatz Tagesliste | E18: Bildungs- und Teilhabepaket (bitte gültigen Nachweis beifügen) | G18: Mittag | I18: per Einzugsverfahren, mit Beleg per Postversand (0,84 € pro Beleg) | J18: per Einzugsverfahren, mit Beleg per E-Mail-Versand (ohne weitere Kosten) | K18: per Überweisung, mit Beleg per Postversand (0,84 € pro Beleg) | L18: per Überweisung, mit Beleg per E-Mail-Versand (ohne weitere Kosten) | M18: 3.4 | N18: 4.25 | O18: 3.95 | P18: 3.5 | T18: Menü | U18: 2.72 | V18: 3.57 | W18: 3.27
A19: 455200 | B19: 4552 | C19: FÖS am Thonberg/ 3.ET (GS) | D19: Einsatz Tagesliste | E19: Bildungs- und Teilhabepaket (bitte gültigen Nachweis beifügen) | G19: Mittag | I19: per Einzugsverfahren, mit Beleg per Postversand (0,84 € pro Beleg) | J19: per Einzugsverfahren, mit Beleg per E-Mail-Versand (ohne weitere Kosten) | K19: per Überweisung, mit Beleg per Postversand (0,84 € pro Beleg) | L19: per Überweisung, mit Beleg per E-Mail-Versand (ohne weitere Kosten) | M19: 3.25 | N19: 4.1 | O19: 3.85 | P19: 3.35 | T19: Menü | U19: =+M19-0.68 -> 2.57 | V19: =+N19-0.68 -> 3.42 | W19: =+O19-0.68 -> 3.17
A20: 455200 | B20: 4552 | C20: FÖS am Thonberg/ 3. ET (OS) | D20: Einsatz Tagesliste | E20: Bildungs- und Teilhabepaket (bitte gültigen Nachweis beifügen) | G20: Mittag | I20: per Einzugsverfahren, mit Beleg per Postversand (0,84 € pro Beleg) | J20: per Einzugsverfahren, mit Beleg per E-Mail-Versand (ohne weitere Kosten) | K20: per Überweisung, mit Beleg per Postversand (0,84 € pro Beleg) | L20: per Überweisung, mit Beleg per E-Mail-Versand (ohne weitere Kosten) | M20: 3.4 | N20: 4.25 | O20: 3.95 | P20: 3.5 | T20: Menü | U20: 2.72 | V20: 3.57 | W20: 3.27
A21: 434000 | B21: 434 | C21: Grundschule Connewitz | D21: Einsatz RFID-Chipkarten-System | E21: Bildungs- und Teilhabepaket (bitte gültigen Nachweis beifügen) | G21: Mittag | I21: per Einzugsverfahren, mit Beleg per Postversand (0,84 € pro Beleg) | J21: per Einzugsverfahren, mit Beleg per E-Mail-Versand (ohne weitere Kosten) | K21: per Überweisung, mit Beleg per Postversand (0,84 € pro Beleg) | L21: per Überweisung, mit Beleg per E-Mail-Versand (ohne weitere Kosten) | M21: 3.35 | N21: 4.2 | O21: 3.85 | P21: 3.45 | T21: Menü mit Salattheke | U21: =+M21-0.7 -> 2.65 | V21: =+N21-0.7 -> 3.5 | W21: =+O21-0.7 -> 3.15
A22: 461200 | B22: 4612 | C22: GS Gröbers | D22: Einsatz RFID-Chipkarten-System | E22: Bildungs- und Teilhabepaket (bitte gültigen Nachweis beifügen) | G22: Mittag | I22: per Einzugsverfahren, mit Beleg per Postversand (0,84 € pro Beleg) | J22: per Einzugsverfahren, mit Beleg per E-Mail-Versand (ohne weitere Kosten) | K22: per Überweisung, mit Beleg per Postversand (0,84 € pro Beleg) | L22: per Überweisung, mit Beleg per E-Mail-Versand (ohne weitere Kosten) | M22: 3.1 | N22: 3.95 | O22: 3.7 | P22: 3.2 | T22: Menü mit Salattheke | U22: =+M22-0.63 -> 2.47 | V22: =+N22-0.63 -> 3.32 | W22: =+O22-0.63 -> 3.07
A23: 435000 | B23: 435 | C23: GS Liebertwolkwitz | D23: Einsatz RFID-Chipkarten-System | E23: Bildungs- und Teilhabepaket (bitte gültigen Nachweis beifügen) | G23: Mittag | I23: per Einzugsverfahren, mit Beleg per Postversand (0,84 € pro Beleg) | J23: per Einzugsverfahren, mit Beleg per E-Mail-Versand (ohne weitere Kosten) | K23: per Überweisung, mit Beleg per Postversand (0,84 € pro Beleg) | L23: per Überweisung, mit Beleg per E-Mail-Versand (ohne weitere Kosten) | M23: 3.35 | N23: 4.2 | O23: 3.85 | P23: 3.45 | T23: Menü mit Salattheke | U23: =+M23-0.7 -> 2.65 | V23: =+N23-0.7 -> 3.5 | W23: =+O23-0.7 -> 3.15
A24: 437300 | B24: 4373 | C24: GS Raguhn | D24: Einsatz Essenmarke | E24: Bildungs- und Teilhabepaket (bitte gültigen Nachweis beifügen) | G24: Mittag | H24: Milch | I24: per Einzugsverfahren, mit Beleg per Postversand (0,84 € pro Beleg) | J24: per Einzugsverfahren, mit Beleg per E-Mail-Versand (ohne weitere Kosten) | K24: per Überweisung, mit Beleg per Postversand (0,84 € pro Beleg) | L24: per Überweisung, mit Beleg per E-Mail-Versand (ohne weitere Kosten) | M24: 3 | N24: 3.9 | O24: 3.7 | P24: 3.1 | T24: Menü | U24: =+M24-0.63 -> 2.37 | V24: =+N24-0.63 -> 3.27 | W24: =+O24-0.63 -> 3.07
A25: 470000 | B25: 470 | C25: Gustav-Hertz-Gymnasium | D25: Einsatz RFID-Chipkarten-System | E25: Bildungs- und Teilhabepaket (bitte gültigen Nachweis beifügen) | G25: Mittag | I25: per Einzugsverfahren, mit Beleg per Postversand (0,84 € pro Beleg) | J25: per Einzugsverfahren, mit Beleg per E-Mail-Versand (ohne weitere Kosten) | K25: per Überweisung, mit Beleg per Postversand (0,84 € pro Beleg) | L25: per Überweisung, mit Beleg per E-Mail-Versand (ohne weitere Kosten) | M25: 3.5 | N25: 4.35 | O25: 3.95 | P25: 3.6 | T25: Menü mit Salattheke | U25: =+M25-0.7 -> 2.8 | V25: 3.65 | W25: 3.25
A26: 465000 | B26: 465 | C26: Lessing-OS Schkeuditz | D26: Einsatz RFID-Chipkarten-System | E26: Bildungs- und Teilhabepaket (bitte gültigen Nachweis beifügen) | G26: Mittag | I26: per Einzugsverfahren, mit Beleg per Postversand (0,84 € pro Beleg) | J26: per Einzugsverfahren, mit Beleg per E-Mail-Versand (ohne weitere Kosten) | K26: per Überweisung, mit Beleg per Postversand (0,84 € pro Beleg) | L26: per Überweisung, mit Beleg per E-Mail-Versand (ohne weitere Kosten) | M26: 3 | N26: 4 | O26: 3.8 | P26: 3.1 | T26: Menü | U26: =+M26-0.63 -> 2.37 | V26: =+N26-0.63 -> 3.37 | W26: =+O26-0.63 -> 3.17
A27: 435500 | B27: 4355 | C27: OS Liebertwolkwitz | D27: Einsatz RFID-Chipkarten-System | E27: Bildungs- und Teilhabepaket (bitte gültigen Nachweis beifügen) | G27: Mittag | I27: per Einzugsverfahren, mit Beleg per Postversand (0,84 € pro Beleg) | J27: per Einzugsverfahren, mit Beleg per E-Mail-Versand (ohne weitere Kosten) | K27: per Überweisung, mit Beleg per Postversand (0,84 € pro Beleg) | L27: per Überweisung, mit Beleg per E-Mail-Versand (ohne weitere Kosten) | M27: 3.5 | N27: 4.35 | O27: 3.95 | P27: 3.6 | T27: Menü mit Salattheke | U27: =+M27-0.7 -> 2.8 | V27: =+N27-0.7 -> 3.65 | W27: =+O27-0.7 -> 3.25
A28: 462500 | B28: 4625 | C28: OS Paunsdorf | D28: Einsatz RFID-Chipkarten-System | E28: Bildungs- und Teilhabepaket (bitte gültigen Nachweis beifügen) | G28: Mittag | I28: per Einzugsverfahren, mit Beleg per Postversand (0,84 € pro Beleg) | J28: per Einzugsverfahren, mit Beleg per E-Mail-Versand (ohne weitere Kosten) | K28: per Überweisung, mit Beleg per Postversand (0,84 € pro Beleg) | L28: per Überweisung, mit Beleg per E-Mail-Versand (ohne weitere Kosten) | M28: 3.4 | N28: 4.25 | O28: 3.95 | P28: 3.5 | T28: Menü | U28: 2.72 | V28: =+N28-0.68 -> 3.57 | W28: =+O28-0.68 -> 3.27
A29: 452500 | B29: 452 | C29: Chr.-G.-Frege-OS | D29: Einsatz RFID-Chipkarten-System | E29: Bildungs- und Teilhabepaket (bitte gültigen Nachweis beifügen) | G29: Mittag | I29: per Einzugsverfahren, mit Beleg per Postversand (0,84 € pro Beleg) | J29: per Einzugsverfahren, mit Beleg per E-Mail-Versand (ohne weitere Kosten) | K29: per Überweisung, mit Beleg per Postversand (0,84 € pro Beleg) | L29: per Überweisung, mit Beleg per E-Mail-Versand (ohne weitere Kosten) | M29: 3.4 | N29: 4.25 | O29: 3.95 | P29: 3.5 | T29: Menü | U29: 2.72 | V29: =+N29-0.68 -> 3.57 | W29: =+O29-0.68 -> 3.27
A30: 435499 | B30: 4354 | C30: Schule am Weißeplatz OS | D30: Einsatz RFID-Chipkarten-System | E30: Bildungs- und Teilhabepaket (bitte gültigen Nachweis beifügen) | G30: Mittag | I30: per Einzugsverfahren, mit Beleg per Postversand (0,84 € pro Beleg) | J30: per Einzugsverfahren, mit Beleg per E-Mail-Versand (ohne weitere Kosten) | K30: per Überweisung, mit Beleg per Postversand (0,84 € pro Beleg) | L30: per Überweisung, mit Beleg per E-Mail-Versand (ohne weitere Kosten) | M30: 3.5 | N30: 4.35 | O30: 3.95 | P30: 3.6 | T30: Menü mit Salattheke | U30: =+M30-0.7 -> 2.8 | V30: =+N30-0.7 -> 3.65 | W30: =+O30-0.7 -> 3.25
A31: 437000 | B31: 437 | C31: Sek.schule 1 Wolfen-Nord | D31: Einsatz Etiketten | E31: Bildungs- und Teilhabepaket (bitte gültigen Nachweis beifügen) | G31: Mittag | I31: per Einzugsverfahren, mit Beleg per Postversand (0,84 € pro Beleg) | J31: per Einzugsverfahren, mit Beleg per E-Mail-Versand (ohne weitere Kosten) | K31: per Überweisung, mit Beleg per Postversand (0,84 € pro Beleg) | L31: per Überweisung, mit Beleg per E-Mail-Versand (ohne weitere Kosten) | Q31: extra Datei | T31: Menüschale | V31: =+N31-0.63 -> -0.63 | W31: =+O31-0.63 -> -0.63
A32: 453000 | B32: 453 | C32: Sekundarschule Muldenstein | D32: Einsatz RFID-Chipkarten-System | E32: Bildungs- und Teilhabepaket (bitte gültigen Nachweis beifügen) | G32: Mittag | I32: per Einzugsverfahren, mit Beleg per Postversand (0,84 € pro Beleg) | J32: per Einzugsverfahren, mit Beleg per E-Mail-Versand (ohne weitere Kosten) | K32: per Überweisung, mit Beleg per Postversand (0,84 € pro Beleg) | L32: per Überweisung, mit Beleg per E-Mail-Versand (ohne weitere Kosten) | M32: 3.15 | N32: 4 | O32: 3.8 | P32: 3.25 | T32: Menü | U32: =+M32-0.63 -> 2.52 | V32: 3.37 | W32: 3.17
A33: 437600 | B33: 4376 | C33: Sekundarschule Raguhn | D33: Einsatz Essenmarke | E33: Bildungs- und Teilhabepaket (bitte gültigen Nachweis beifügen) | G33: Mittag | I33: per Einzugsverfahren, mit Beleg per Postversand (0,84 € pro Beleg) | J33: per Einzugsverfahren, mit Beleg per E-Mail-Versand (ohne weitere Kosten) | K33: per Überweisung, mit Beleg per Postversand (0,84 € pro Beleg) | L33: per Überweisung, mit Beleg per E-Mail-Versand (ohne weitere Kosten) | M33: 3.15 | N33: 4 | O33: 3.8 | P33: 3.25 | T33: Menü | U33: =+M33-0.63 -> 2.52 | V33: 3.37 | W33: 3.17
A34: 457000 | B34: 457 | C34: Theodor-Körner-GS | D34: Einsatz RFID-Chipkarten-System | E34: Bildungs- und Teilhabepaket (bitte gültigen Nachweis beifügen) | G34: Mittag | I34: per Einzugsverfahren, mit Beleg per Postversand (0,84 € pro Beleg) | J34: per Einzugsverfahren, mit Beleg per E-Mail-Versand (ohne weitere Kosten) | K34: per Überweisung, mit Beleg per Postversand (0,84 € pro Beleg) | L34: per Überweisung, mit Beleg per E-Mail-Versand (ohne weitere Kosten) | M34: 3.35 | N34: 4.2 | O34: 3.85 | P34: 3.45 | T34: Menü mit Salattheke | U34: =+M34-0.7 -> 2.65 | V34: =+N34-0.7 -> 3.5 | W34: =+O34-0.7 -> 3.15
A35: 456000 | B35: 456 | C35: Wilhelm-Busch-GS | D35: Einsatz RFID-Chipkarten-System | E35: Bildungs- und Teilhabepaket (bitte gültigen Nachweis beifügen) | G35: Mittag | I35: per Einzugsverfahren, mit Beleg per Postversand (0,84 € pro Beleg) | J35: per Einzugsverfahren, mit Beleg per E-Mail-Versand (ohne weitere Kosten) | K35: per Überweisung, mit Beleg per Postversand (0,84 € pro Beleg) | L35: per Überweisung, mit Beleg per E-Mail-Versand (ohne weitere Kosten) | M35: 3.25 | N35: 4.1 | O35: 3.85 | P35: 3.35 | T35: Menü | U35: =+M35-0.68 -> 2.57 | V35: =+N35-0.68 -> 3.42 | W35: 3.17
A36: 433000 | B36: 433 | C36: Friedrich-Fröbel-Grundschule | D36: Einsatz RFID-Chipkarten-System | E36: Bildungs- und Teilhabepaket (bitte gültigen Nachweis beifügen) | G36: Mittag | I36: per Einzugsverfahren, mit Beleg per Postversand (0,84 € pro Beleg) | J36: per Einzugsverfahren, mit Beleg per E-Mail-Versand (ohne weitere Kosten) | K36: per Überweisung, mit Beleg per Postversand (0,84 € pro Beleg) | L36: per Überweisung, mit Beleg per E-Mail-Versand (ohne weitere Kosten) | M36: 3.35 | N36: 4.2 | O36: 3.85 | P36: 3.45 | T36: Menü mit Salattheke | U36: =+M36-0.7 -> 2.65 | V36: =+N36-0.7 -> 3.5 | W36: =+O36-0.7 -> 3.15
A37: 464000 | B37: 464 | C37: GS Rückmarsdorf | D37: Einsatz RFID-Chipkarten-System | E37: Bildungs- und Teilhabepaket (bitte gültigen Nachweis beifügen) | G37: Mittag | I37: per Einzugsverfahren, mit Beleg per Postversand (0,84 € pro Beleg) | J37: per Einzugsverfahren, mit Beleg per E-Mail-Versand (ohne weitere Kosten) | K37: per Überweisung, mit Beleg per Postversand (0,84 € pro Beleg) | L37: per Überweisung, mit Beleg per E-Mail-Versand (ohne weitere Kosten) | M37: 3.25 | N37: 4.1 | O37: 3.85 | P37: 3.35 | T37: Menü | U37: =+M37-0.68 -> 2.57 | V37: =+N37-0.68 -> 3.42 | W37: =+O37-0.68 -> 3.17
A38: 438000 | B38: 438 | C38: C.Thieme Grundschule Borna | D38: Einsatz RFID-Chipkarten-System | E38: Bildungs- und Teilhabepaket (bitte gültigen Nachweis beifügen) | G38: Mittag | I38: per Einzugsverfahren, mit Beleg per Postversand (0,84 € pro Beleg) | J38: per Einzugsverfahren, mit Beleg per E-Mail-Versand (ohne weitere Kosten) | K38: per Überweisung, mit Beleg per Postversand (0,84 € pro Beleg) | L38: per Überweisung, mit Beleg per E-Mail-Versand (ohne weitere Kosten) | M38: 3.1 | N38: 3.95 | O38: 3.55 | P38: 3.2 | T38: Menü mit Salattheke
A39: 464500 | B39: 464 | C39: Paul-Wäge-Grundschule Dölzig | D39: Einsatz RFID-Chipkarten-System | E39: Bildungs- und Teilhabepaket (bitte gültigen Nachweis beifügen) | G39: Mittag | I39: per Einzugsverfahren, mit Beleg per Postversand (0,84 € pro Beleg) | J39: per Einzugsverfahren, mit Beleg per E-Mail-Versand (ohne weitere Kosten) | K39: per Überweisung, mit Beleg per Postversand (0,84 € pro Beleg) | L39: per Überweisung, mit Beleg per E-Mail-Versand (ohne weitere Kosten) | Q39: extra Datei | T39: ohne Service
A40: 462000 | B40: 462 | C40: Comeniusschule Halle | D40: Einsatz RFID-Chipkarten-System | E40: Bildungs- und Teilhabepaket (bitte gültigen Nachweis beifügen) | G40: Mittag | I40: per Einzugsverfahren, mit Beleg per Postversand (0,84 € pro Beleg) | J40: per Einzugsverfahren, mit Beleg per E-Mail-Versand (ohne weitere Kosten) | K40: per Überweisung, mit Beleg per Postversand (0,84 € pro Beleg) | L40: per Überweisung, mit Beleg per E-Mail-Versand (ohne weitere Kosten) | M40: 3.05 | N40: 3.8 | O40: 3.7 | P40: 3.15 | T40: Menü mit Salattheke
A41: 431000 | B41: 431 | C41: Hort Wiederitzsch | D41: Einsatz RFID-Chipkarten-System | E41: Bildungs- und Teilhabepaket (bitte gültigen Nachweis beifügen) | G41: Mittag | I41: per Einzugsverfahren, mit Beleg per Postversand (0,84 € pro Beleg) | J41: per Einzugsverfahren, mit Beleg per E-Mail-Versand (ohne weitere Kosten) | K41: per Überweisung, mit Beleg per Postversand (0,84 € pro Beleg) | L41: per Überweisung, mit Beleg per E-Mail-Versand (ohne weitere Kosten) | Q41: extra Datei | T41: Menü mit Salattheke
A42: 473000 | B42: 473 | C42: GS Jesewitz | D42: Einsatz Tagesliste | E42: Bildungs- und Teilhabepaket (bitte gültigen Nachweis beifügen) | G42: Mittag | I42: per Einzugsverfahren, mit Beleg per Postversand (0,84 € pro Beleg) | J42: per Einzugsverfahren, mit Beleg per E-Mail-Versand (ohne weitere Kosten) | K42: per Überweisung, mit Beleg per Postversand (0,84 € pro Beleg) | L42: per Überweisung, mit Beleg per E-Mail-Versand (ohne weitere Kosten) | M42: 2.4 | N42: 2.8 | O42: 2.4 | P42: 2.5 | T42: Menü mit Salattheke
A43: 455600 | B43: 4556 | C43: Martin-Schule | D43: Einsatz Tagesliste | E43: Bildungs- und Teilhabepaket (bitte gültigen Nachweis beifügen) | G43: Mittag | I43: per Einzugsverfahren, mit Beleg per Postversand (0,84 € pro Beleg) | J43: per Einzugsverfahren, mit Beleg per E-Mail-Versand (ohne weitere Kosten) | K43: per Überweisung, mit Beleg per Postversand (0,84 € pro Beleg) | L43: per Überweisung, mit Beleg per E-Mail-Versand (ohne weitere Kosten) | M43: 3.4 | N43: 4.25 | O43: 3.95 | P43: 3.5
